bitfinex-derivatives/quotes_ETHF0:USTF0_20250518
["timestamp","ask_amount","ask_price","bid_price","bid_amount"]
[1747611656458,0.81436,2454.9,2454.7,0.81441]
[1747611656752,2.22426,2454.9,2454.6,2.11534]
[1747611657057,2.22426,2454.9,2454.7,0.81441]
[1747611657556,0.81439,2454.8,2454.6,2.11534]
[1747611657760,0.81462,2454.1,2454.0,3.2078]
[1747611657957,0.81471,2453.9,2453.7,10.002]
[1747611658151,0.81479,2453.6,2453.4,3.2078]
[1747611658752,4.02259,2453.6,2453.3,1.60599787]
[1747611659057,4.02259,2453.6,2452.9,0.81502]
[1747611659058,0.81492,2453.3,2452.9,0.81502]
[1747611659358,10.66691,2453.3,2453.0,0.81498]
[1747611659549,1.3217,2453.2,2453.1,0.81495]
[1747611659751,1.3217,2453.2,2453.0,0.81497]
[1747611660155,2.13663,2453.2,2452.9,0.815]
[1747611660349,2.13663,2453.2,2452.9,0.915]
[1747611660554,2.13663,2453.2,2452.9,0.815]
[1747611660752,2.13663,2453.2,2452.8,10.003]
[1747611660753,0.81502,2452.9,2452.8,10.003]
[1747611660955,0.81501,2453.0,2452.5,1.3603]
[1747611661155,1.3535,2452.9,2452.5,1.3603]
[1747611661364,1.3535,2452.9,2452.8,0.81505]
[1747611661575,3.2078,2453.5,2452.7,5.24551]
[1747611661748,4.108,2453.8,2453.7,0.81475]
[1747611662055,0.9002,2453.8,2453.2,9.832]
[1747611662258,0.9002,2453.8,2453.5,0.8148]
[1747611662462,1.71493,2453.8,2453.5,0.8148]
[1747611662657,1.71493,2453.8,2453.7,0.81475]
[1747611662658,0.9002,2453.8,2453.7,0.81475]
[1747611662855,4.0224,2454.2,2453.4,5.24494]
[1747611663060,9.827,2454.0,2453.9,0.81468]
[1747611663555,1.3491,2454.1,2454.0,0.81465]
[1747611663749,9.84,2454.3,2454.0,0.81465]
[1747611663951,1.3491,2454.2,2453.8,1.3662]
[1747611664153,0.81467,2454.0,2453.7,0.81474]
[1747611664354,12.4009,2454.5,2453.7,3.2078]
[1747611664558,1.3491,2454.3,2454.1,0.81461]
[1747611664865,1.3491,2454.3,2454.2,0.81459]
[1747611665050,11.1951,2454.3,2454.2,1.3662]
[1747611665254,11.1951,2454.3,2454.1,0.8146]
[1747611665455,11.1951,2454.3,2454.0,3.2078]
[1747611665456,1.3491,2454.3,2454.2,0.81459]
[1747611665650,1.3483303,2454.6,2454.1,1.3662]
[1747611665854,1.3483303,2454.6,2454.5,4.02229]
[1747611666163,1.68435172,2454.9,2454.8,0.81439]
[1747611666362,1.68435172,2454.9,2454.8,4.02219]
[1747611666959,1.68435172,2454.9,2454.8,9.02219]
[1747611667156,2.18052,2455.3,2454.8,11.2658]
[1747611667361,1.3663,2455.3,2455.1,0.81427]
[1747611667563,1.3663,2455.3,2455.2,0.81426]
[1747611667859,4.0958,2455.9,2454.9,11.2319]
[1747611668158,0.81411,2455.7,2455.4,0.81417]
[1747611668359,1.44774648,2455.6,2455.5,0.81416]
[1747611668563,2.26187648,2455.6,2455.4,1.3989]
[1747611668766,0.8956298,2455.5,2455.3,9.833]
[1747611668958,0.08145312,2455.4,2455.3,9.833]
[1747611669159,0.08145312,2455.4,2455.3,13.70522]
[1747611669361,1.48305312,2455.4,2455.3,15.02062]
[1747611669966,11.30305312,2455.4,2454.6,3.2078]
[1747611670162,3.2078,2455.3,2454.6,3.2078]
[1747611670365,1.4016,2455.2,2454.6,4.5232]
[1747611670568,9.867,2455.1,2454.6,4.5232]
[1747611670765,1.4016,2455.0,2454.9,0.81436]
[1747611671458,1.4016,2455.0,2454.6,3.2078]
[1747611671660,1.4016,2455.0,2454.3,11.96194]
[1747611671661,0.81447,2454.6,2454.3,11.96194]
[1747611671861,4.6094,2454.5,2453.9,1.20445206]
[1747611672061,9.891,2454.4,2453.9,1.20445206]
[1747611672259,1.3241,2454.3,2454.1,0.81461]
[1747611672661,2.13866,2454.3,2454.1,0.81461]
[1747611672862,1.3241,2454.3,2454.1,0.81461]
[1747611673066,13.0768,2454.5,2454.4,0.81452]
[1747611673269,10.7558,2455.3,2454.7,2.03606]
[1747611673469,1.3241,2455.2,2454.8,1.3532]
[1747611673672,2.13837,2455.2,2454.9,0.81436]
[1747611673866,1.3241,2455.2,2454.8,1.3532]
[1747611674165,2.03573,2455.1,2454.5,4.1042]
[1747611674373,0.81441,2454.8,2454.5,0.8964]
[1747611674569,1.3241,2454.7,2454.5,0.8964]
[1747611674870,3.2078,2455.3,2454.6,5.37127017]
[1747611675071,4.5319,2455.3,2454.9,3.2078]
[1747611675369,0.08145312,2455.4,2455.3,0.81422]
[1747611675559,0.08145312,2455.4,2455.0,1.4234]
[1747611675765,0.81427,2455.2,2455.0,1.4234]
[1747611675961,1.4157,2455.1,2455.0,1.4234]
[1747611676167,1.4157,2455.1,2455.0,4.4814]
[1747611676864,1.4157,2455.1,2455.0,5.29572]
[1747611677172,0.08145312,2455.4,2455.3,0.81422]
[1747611677869,0.08145312,2455.4,2455.2,1.4234]
[1747611677870,2.22986,2455.5,2455.2,2.23764]
[1747611678071,1.4157,2455.5,2455.3,2.23762]
[1747611678767,10.73815,2455.6,2455.5,0.81416]
[1747611678768,9.924,2455.6,2455.5,0.81416]
[1747611678970,1.3392,2455.7,2455.5,0.81416]
[1747611679164,11.2312,2455.7,2455.5,0.81414]
[1747611679365,11.2312,2455.7,2455.6,1.3342]
[1747611679564,12.04529,2455.7,2455.6,1.3342]
[1747611679767,11.2312,2455.7,2455.4,0.81418]
[1747611679960,1.3392,2455.7,2455.4,2.14838]
[1747611680163,2.15331,2455.7,2455.5,0.81416]
[1747611680364,1.3392,2455.7,2455.6,0.81412]
[1747611680560,1.67241,2456.3,2455.6,2.03532]
[1747611680765,9.869,2456.0,2455.7,1.3342]
[1747611681069,12.01915,2456.2,2455.9,0.814]
[1747611681270,12.01915,2456.2,2456.0,1.3342]
[1747611681472,1.3392,2456.2,2456.1,0.81396]
[1747611681771,0.9027,2456.7,2456.6,0.81379]
[1747611681968,3.2078,2457.2,2456.7,0.81373]
[1747611682170,0.8136,2457.2,2456.5,13.0378]
[1747611682468,0.81362,2457.2,2456.9,0.81369]
[1747611682665,0.81362,2457.2,2456.8,4.02151]
[1747611682865,4.02246166,2457.3,2456.6,10.6896]
[1747611683061,1.3453,2457.2,2456.6,10.6896]
[1747611683272,0.81366,2457.1,2456.8,4.02152]
[1747611683469,2.15896,2457.0,2456.8,3.2078]
[1747611683661,1.7277,2457.5,2456.9,1.3938]
[1747611683863,0.81361,2457.2,2456.9,1.3938]
[1747611684170,0.81361,2457.2,2456.9,2.20747]
[1747611684469,2.03391,2457.3,2456.7,9.83]
[1747611684665,1.2931,2457.1,2456.7,11.1927]
[1747611684864,0.81378,2456.7,2456.4,13.0358]
[1747611685064,0.81379,2456.6,2456.5,1.3627]
[1747611685259,13.19623,2457.1,2456.1,4.1069]
[1747611685472,2.03432,2456.8,2456.2,9.828]
[1747611685666,0.81389,2456.3,2456.2,9.828]
[1747611685872,9.86,2456.7,2456.0,9.828]
[1747611685873,0.81399,2456.1,2456.0,9.828]
[1747611686175,0.81388,2456.4,2456.1,0.81394]
[1747611686467,0.9036,2456.7,2456.0,13.0358]
[1747611686770,0.8257,2457.0,2456.3,3.2078]
[1747611686972,1.2931,2456.9,2456.4,1.3627]
[1747611687168,4.5009,2456.9,2456.3,3.2078]
[1747611687373,2.03432,2456.8,2456.0,3.2078]
[1747611687566,2.03432,2456.8,2456.0,1.4046]
[1747611687567,5.24229,2456.6,2456.0,1.4046]
[1747611687767,0.81396,2456.1,2456.0,11.2326]
[1747611687967,0.81394,2456.2,2456.0,11.2326]
[1747611688771,1.3642,2456.5,2455.9,9.827]
[1747611688968,0.81399,2456.0,2455.9,9.827]
[1747611689566,0.81406,2455.8,2455.7,1.4046]
[1747611689764,0.81409,2455.7,2455.6,3.2078]
[1747611690070,0.81417,2455.5,2455.3,1.4046]
[1747611690268,1.3642,2455.4,2455.3,2.21882]
[1747611690475,1.3642,2455.4,2455.3,1.4046]
[1747611691471,0.81422,2455.3,2455.2,9.827]
[1747611692569,0.81426,2455.2,2455.1,6.2658]
[1747611692777,2.11026,2455.2,2455.1,3.058]
[1747611693160,0.81432,2455.0,2454.9,9.836]
[1747611693966,3.2078,2455.8,2455.4,0.81418]
[1747611694171,0.81393,2456.2,2455.7,3.2078]
[1747611694374,11.2614,2456.2,2455.7,3.2078]
[1747611694680,0.81402,2455.9,2455.8,1.3251]
[1747611695174,2.20933,2456.2,2455.8,9.3831]
[1747611695375,0.81387,2456.4,2456.1,3.2078]
[1747611695575,0.81387,2456.4,2456.2,1.3251]
[1747611695973,13.1318,2456.5,2455.8,6.2658]
[1747611696276,0.81398,2456.1,2455.9,0.12724437]
[1747611696483,3.058,2456.9,2456.0,0.12724647]
[1747611696784,3.058,2456.9,2456.8,0.81373]
[1747611697273,1.68435172,2457.0,2456.9,0.81369]
[1747611697875,1.68435172,2457.0,2456.8,2.1675]
[1747611698073,0.81364,2457.1,2456.8,2.98121]
[1747611698381,1.3081,2457.2,2456.9,0.81367]
[1747611698573,1.3081,2457.2,2457.0,1.3462]
[1747611698881,2.12171,2457.2,2457.0,1.3462]
[1747611699174,1.3081,2457.2,2456.7,3.2078]
[1747611699370,1.3081,2457.2,2456.6,9.836]
[1747611699579,0.81365,2457.1,2456.7,2.28714011]
[1747611699770,1.42,2457.0,2456.8,2.11061]
[1747611700271,1.42,2457.0,2456.8,1.2969]
[1747611700477,1.42,2457.0,2456.8,2.11061]
[1747611700675,1.42,2457.0,2456.9,0.81369]
[1747611700881,1.42,2457.0,2456.9,2.11059]
[1747611701175,1.34649772,2457.7,2457.5,0.81349]
[1747611701681,0.81348,2457.6,2457.3,10.64855]
[1747611701882,1.42,2457.5,2457.4,1.2969]
[1747611702272,0.81359,2457.2,2457.1,3.2078]
[1747611702468,0.81363,2457.1,2456.9,1.2969]
[1747611702777,1.42,2457.0,2456.8,0.8892]
[1747611702977,1.42,2457.0,2456.8,3.00021]
[1747611703180,1.42,2457.0,2456.4,3.2078]
[1747611703375,0.81374,2456.8,2456.5,0.94101117]
[1747611703576,1.4177,2456.7,2456.6,0.12720117]
[1747611703774,2.23146,2456.7,2456.6,0.12720117]
[1747611704080,1.4177,2456.7,2456.3,50.874]
[1747611704383,0.81386,2456.4,2456.3,9.833]
[1747611704776,4.4757,2456.7,2456.3,9.833]
[1747611705080,0.81386,2456.4,2456.3,9.833]
[1747611705278,0.81396,2456.1,2456.0,3.2078]
[1747611705475,0.81396,2456.1,2456.0,3.335035]
[1747611705876,0.81404,2455.9,2455.7,14.24525206]
[1747611706176,2.13606,2455.8,2455.7,14.24525206]
[1747611706377,9.876,2456.1,2455.7,15.18659942]
[1747611706681,9.875,2456.5,2456.3,0.81388]
[1747611706874,0.32725182,2457.0,2456.2,2.03482]
[1747611707179,1.322,2456.9,2456.7,3.2078]
[1747611707479,1.322,2456.9,2456.8,2.16743]
[1747611707783,0.81368,2457.0,2456.8,1.48090218]
[1747611707975,0.81368,2457.0,2456.9,0.12720062]
[1747611708377,0.81365,2457.1,2456.9,0.12720062]
[1747611708580,0.81365,2457.1,2456.8,2.16742]
[1747611708881,13.1178,2457.2,2456.6,9.833]
[1747611709184,0.81374,2456.8,2456.7,0.12721426]
[1747611709582,0.81374,2456.8,2456.4,1.3444]
[1747611709583,0.81386,2456.4,2456.1,0.81396]
[1747611709782,9.891,2456.8,2456.3,3.2078]
[1747611709978,0.81374,2456.8,2456.5,0.81382]
[1747611710178,0.81374,2456.8,2456.6,1.3444]
[1747611710483,0.81373,2456.8,2456.6,1.3444]
[1747611711281,0.8886,2457.1,2456.6,4.5522]
[1747611711484,9.872,2457.2,2456.9,4.02148]
[1747611711686,10.68561,2457.2,2457.0,0.12721094]
[1747611711885,4.0616,2457.5,2457.1,0.12719347]
[1747611712085,2.8433,2458.1,2457.2,3.33498725]
[1747611712086,9.879,2457.8,2457.2,3.33498725]
[1747611712281,9.879,2457.8,2457.3,1.50738725]
[1747611712585,0.81347,2457.6,2457.4,0.94069725]
[1747611712780,0.81347,2457.6,2457.5,0.12718725]
[1747611713287,2.84326,2458.1,2457.5,0.12718725]
[1747611713288,1.62331,2458.1,2457.5,3.33498725]
[1747611713489,0.81,2458.1,2457.6,2.32080621]
[1747611713688,0.81338,2457.9,2457.7,0.12715856]
[1747611713886,0.81338,2457.9,2457.7,0.81343]
[1747611714080,0.81,2458.1,2457.6,1.3802]
[1747611714282,0.81,2458.1,2457.4,0.8427]
[1747611714483,10.697,2458.1,2457.5,0.12716043]
[1747611714782,0.81353,2457.4,2457.1,4.02139]
[1747611714976,2.03333,2458.0,2457.2,11.33877403]
[1747611715181,0.81355,2457.4,2457.3,0.12717403]
[1747611715389,0.81355,2457.4,2457.1,0.81361]
[1747611715390,0.81356,2457.3,2457.1,0.81363]
[1747611715588,0.81356,2457.3,2457.2,0.12718089]
[1747611715987,0.81362,2457.2,2457.0,9.832]
[1747611716184,3.2078,2457.6,2457.1,0.12718578]
[1747611716483,9.877,2457.7,2457.2,0.81359]
[1747611716484,0.81354,2457.4,2457.2,0.81359]
[1747611716790,0.81356,2457.3,2457.1,4.02141]
[1747611717086,0.81354,2457.4,2457.1,4.02141]
[1747611717285,0.81355,2457.4,2457.1,4.02141]
[1747611717489,0.81355,2457.4,2456.9,11.2116]
[1747611717490,0.81369,2456.9,2456.8,3.2078]
[1747611717688,3.2078,2457.3,2456.8,3.33499792]
[1747611717689,0.81368,2457.0,2456.8,3.33499792]
[1747611717881,9.848,2457.3,2456.8,3.2078]
[1747611718077,10.65658,2457.3,2457.0,0.81365]
[1747611718386,0.8136,2457.2,2456.9,0.81368]
[1747611718575,0.8136,2457.2,2457.0,1.4015]
[1747611718779,0.81363,2457.1,2457.0,1.4015]
[1747611719488,9.843,2457.3,2456.8,3.2078]
[1747611719692,0.81383,2456.5,2456.4,0.8339]
[1747611719981,0.81383,2456.5,2456.4,0.12720944]
[1747611720382,0.81381,2456.6,2456.4,0.12722346]
[1747611720583,0.8904,2457.1,2456.3,1.4015]
[1747611720778,2.03429,2456.9,2456.2,3.2078]
[1747611720981,0.81389,2456.3,2456.2,13.0398]
[1747611721176,3.2078,2456.9,2456.2,13.0398]
[1747611721382,0.81371,2456.9,2456.6,0.81376]
[1747611721581,0.8904,2457.1,2456.5,3.2078]
[1747611721782,10.66865,2457.1,2456.9,0.81369]
[1747611721976,10.1811505,2457.1,2456.6,1.4183]
[1747611722186,0.81383,2456.5,2456.2,13.0398]
[1747611722379,3.2078,2457.2,2456.3,3.58021964]
[1747611722586,3.2078,2457.2,2456.5,3.2078]
[1747611722785,0.81361,2457.2,2456.8,3.2078]
[1747611722985,0.81361,2457.2,2456.9,2.35919964]
[1747611723289,0.8378,2457.4,2456.9,1.4183]
[1747611723496,0.81358,2457.3,2457.0,0.12719247]
[1747611723683,0.81358,2457.3,2457.1,1.54549247]
[1747611723879,0.81358,2457.3,2457.2,0.12719247]
[1747611724391,0.8378,2457.4,2457.2,0.94076247]
[1747611724692,1.3722,2457.3,2457.1,1.4183]
[1747611724885,1.3722,2457.3,2456.8,13.0658]
[1747611724886,2.18576,2457.3,2457.2,0.12718564]
[1747611725391,0.81362,2457.2,2456.9,10.67168]
[1747611725592,1.3722,2457.1,2457.0,0.12719125]
[1747611726088,1.3722,2457.1,2457.0,0.94085125]
[1747611726489,7.18583,2457.1,2457.0,0.12719125]
[1747611726695,7.18583,2457.1,2456.2,2.57835206]
[1747611726696,0.81387,2456.4,2456.2,2.57835206]
[1747611726993,10.6437,2456.9,2456.7,0.81375]
[1747611727185,14.4716,2456.9,2456.3,1.3875]
[1747611727386,0.81384,2456.5,2456.4,0.12722392]
[1747611727583,4.02161,2456.6,2456.4,0.12722392]
[1747611727785,2.24764,2456.5,2456.2,1.20445206]
[1747611727986,2.24764,2456.5,2456.3,2.32860615]
[1747611728198,1.4338,2456.5,2456.4,0.12722615]
[1747611728695,1.4338,2456.5,2456.4,0.94108615]
[1747611728883,3.2078,2457.3,2456.5,2.03457]
[1747611729089,1.4338,2457.1,2456.8,0.81371]
[1747611729396,0.81366,2457.0,2456.9,0.12722615]
[1747611729597,1.4338,2457.1,2456.9,0.12722615]
[1747611729898,2.24743,2457.1,2457.0,0.12722615]
[1747611730198,4.02246166,2458.0,2457.1,2.03407]
[1747611730402,4.02246166,2458.0,2457.7,3.2078]
[1747611730596,4.83581166,2458.0,2457.8,0.12722615]
[1747611730794,1.3374,2457.9,2457.7,4.02121]
[1747611730989,1.3374,2457.9,2457.8,1.53335418]
[1747611731191,2.15076,2457.9,2457.8,0.12715418]
[1747611732108,5.20876,2457.9,2457.8,0.12715418]
[1747611733015,5.20876,2457.9,2457.5,1.4062]
[1747611733016,0.81349,2457.5,2457.4,9.858]
[1747611733214,0.81366,2457.0,2456.9,13.958]
[1747611733409,0.81366,2457.0,2456.9,13.1909883]
[1747611733716,9.885,2457.3,2457.1,0.81359]
[1747611734009,2.14764,2457.4,2457.2,0.94076071]
[1747611734010,1.3341,2457.4,2457.2,0.94076071]
[1747611734211,2.14764,2457.4,2456.9,3.2078]
[1747611734411,2.03399,2457.2,2456.8,1.20445206]
[1747611734711,0.81369,2456.9,2456.8,1.20445206]
[1747611735117,2.14779,2456.9,2456.8,1.20445206]
[1747611735412,4.3921,2456.9,2456.8,1.20445206]
[1747611735721,5.20579,2456.9,2456.8,1.20445206]
[1747611736114,2.14779,2456.9,2456.8,1.20445206]
[1747611736519,0.81383,2456.5,2456.4,3.2078]
[1747611736816,0.81383,2456.5,2456.4,3.33502385]
[1747611737018,0.81383,2456.5,2456.4,0.12722385]
[1747611737819,10.74683,2456.5,2456.4,0.12722385]
[1747611738317,10.74683,2456.5,2456.1,3.2078]
[1747611738318,0.81392,2456.2,2456.1,3.2078]
[1747611738508,0.81392,2456.2,2456.1,3.33504557]
[1747611739008,0.81406,2455.8,2455.7,4.41225206]
[1747611739206,0.81406,2455.8,2455.7,1.33170744]
[1747611739405,1.3431,2456.1,2455.7,1.33170744]
[1747611739603,1.3431,2456.1,2455.8,0.12725538]
[1747611739604,11.2681,2456.1,2455.8,0.12725538]
[1747611739805,12.08207,2456.1,2455.9,0.12725538]
[1747611740012,0.81402,2455.9,2455.8,1.2924]
[1747611740220,0.81402,2455.9,2455.8,0.1272592]
[1747611740407,5.24279,2456.0,2455.4,13.0658]
[1747611740721,2.03515,2455.8,2455.3,1.2924]
[1747611741018,2.03515,2455.8,2455.1,0.8428]
[1747611741019,0.81424,2455.3,2455.1,0.8428]
[1747611741218,3.2078,2456.0,2455.2,0.12729148]
[1747611741423,7.9514,2456.3,2456.0,0.81398]
[1747611741614,1.3431,2456.2,2455.7,13.0658]
[1747611741817,1.3431,2456.2,2456.0,0.81396]
[1747611742109,1.3431,2456.2,2456.1,2.10636]
[1747611742315,1.3431,2456.2,2456.1,1.41964479]
[1747611742518,4.1143,2456.7,2456.1,1.41964479]
[1747611742714,3.2078,2456.7,2456.5,0.81381]
[1747611742919,3.2078,2456.7,2456.6,1.315]
[1747611743415,3.2078,2456.7,2456.6,2.12879]
[1747611743621,3.2078,2456.7,2456.6,1.315]
[1747611743812,1.34649772,2456.8,2456.6,1.44221647]
[1747611744012,0.81352,2457.5,2457.0,0.81366]
[1747611744223,1.294,2457.5,2457.0,0.9408731]
[1747611744519,0.81357,2457.3,2457.0,0.9408731]
[1747611744713,0.81357,2457.3,2457.0,2.2558731]
[1747611745116,2.10751,2457.5,2457.0,5.3138731]
[1747611745321,2.6474433,2457.5,2457.0,9.5002131]
[1747611745515,1.3534433,2457.5,2457.4,0.81353]
[1747611745824,1.3534433,2457.5,2457.4,0.9407431]
[1747611746118,1.3534433,2457.5,2457.4,2.3809131]
[1747611746317,2.1669333,2457.5,2457.4,0.1272131]
[1747611746823,0.81353,2457.4,2457.3,9.859]
[1747611747015,1.3306,2457.4,2457.3,9.859]
[1747611747319,1.3306,2457.4,2457.1,1.4006]
[1747611747518,0.81361,2457.2,2457.0,3.2078]
[1747611747820,1.3306,2457.1,2456.6,2.21437]
[1747611748019,1.3306,2457.1,2456.7,0.94094279]
[1747611748215,2.14425,2457.1,2456.8,0.12720279]
[1747611748417,2.14425,2457.1,2456.8,0.81372]
[1747611748816,1.3306,2457.1,2456.6,2.21438]
[1747611749020,5.35205,2457.1,2456.7,0.94096234]
[1747611749320,2.14424,2457.1,2456.8,0.81371]
[1747611749620,4.5384,2457.1,2456.5,1.20445206]
[1747611749819,0.81377,2456.7,2456.5,1.20445206]
[1747611750126,1.3567,2456.6,2456.3,5.43997]
[1747611750424,2.1705,2456.6,2456.4,0.12722597]
[1747611750716,2.1705,2456.6,2456.3,3.2078]
[1747611750926,2.1705,2456.6,2456.4,0.94106996]
[1747611750927,1.3567,2456.6,2456.4,0.94106996]
[1747611751122,1.3567,2456.6,2456.5,0.94105526]
[1747611751419,0.81367,2457.0,2456.7,0.81374]
[1747611751721,0.81381,2456.6,2456.3,4.02168]
[1747611751923,1.4219,2456.5,2456.4,0.12722645]
[1747611752117,2.23573,2456.5,2456.4,0.12722645]
[1747611752320,1.4219,2456.5,2456.3,3.2078]
[1747611752522,1.4219,2456.5,2456.4,0.81386]
[1747611752712,1.6645,2457.3,2456.9,0.81367]
[1747611752913,1.4219,2457.0,2456.7,3.2078]
[1747611753114,1.4219,2457.0,2456.4,3.2078]
[1747611753327,0.81371,2456.9,2456.6,0.81377]
[1747611753525,1.4219,2456.8,2456.7,0.81376]
[1747611753825,0.81363,2457.1,2456.7,3.33501232]
[1747611754021,4.8723,2457.3,2456.8,1.3835]
[1747611754022,1.4219,2457.2,2456.8,1.3835]
[1747611754226,0.81364,2457.1,2456.8,2.19721]
[1747611754423,1.3175,2457.0,2456.8,1.3835]
[1747611754727,1.3175,2457.0,2456.8,2.19721]
[1747611755118,2.13118,2457.0,2456.8,1.3835]
[1747611755526,2.13118,2457.0,2456.8,2.19722]
[1747611755727,2.13118,2457.0,2456.8,1.3835]
[1747611756030,0.81381,2456.6,2456.4,3.2078]
[1747611756224,0.81381,2456.6,2456.5,0.12720952]
[1747611756424,1.3175,2457.0,2456.5,3.33500952]
[1747611756628,2.13116,2457.0,2456.8,4.02152]
[1747611756922,2.13116,2457.0,2456.9,0.12720139]
[1747611757226,2.13116,2457.0,2456.9,1.3464]
[1747611757526,2.13116,2457.0,2456.9,1.47360524]
[1747611757729,2.13116,2457.0,2456.9,0.12720524]
[1747611757921,1.3175,2457.0,2456.7,0.81376]
[1747611758117,0.81371,2456.9,2456.8,0.12720696]
[1747611759124,0.81369,2456.9,2456.8,0.12720665]
[1747611759331,0.81383,2456.5,2456.4,1.3064]
[1747611759522,0.81383,2456.5,2456.4,1.43361822]
[1747611760019,0.81381,2456.6,2456.4,2.24746822]
[1747611760219,1.6645,2457.3,2456.5,3.33501822]
[1747611760424,1.6645,2457.3,2456.6,1.43961822]
[1747611760425,0.81366,2457.1,2456.6,1.43961822]
[1747611760625,1.4138,2457.2,2456.7,0.94095822]
[1747611760829,0.81369,2456.9,2456.8,1.43961822]
[1747611761124,0.81369,2456.9,2456.8,1.43960344]
[1747611761331,0.81376,2456.7,2456.6,9.861]
[1747611761533,2.22754,2456.8,2456.6,10.80199379]
[1747611761724,2.22754,2456.8,2456.7,0.12721379]
[1747611762028,0.81379,2456.6,2456.5,3.2078]
[1747611762240,0.81379,2456.6,2456.5,3.3350206]
[1747611762530,0.81379,2456.6,2456.5,0.1272206]
[1747611762921,0.81389,2456.3,2456.1,3.2078]
[1747611763122,1.4138,2456.2,2455.8,13.0688]
[1747611763318,0.81399,2456.0,2455.9,0.12725149]
[1747611763530,0.81397,2456.1,2455.9,0.12725149]
[1747611763730,2.22774,2456.2,2456.0,0.12725149]
[1747611763932,2.22774,2456.2,2456.0,1.3837]
[1747611764127,1.4138,2456.2,2456.0,1.3837]
[1747611764330,0.81387,2456.4,2456.1,4.14899092]
[1747611764522,2.10557,2456.4,2456.2,1.51095092]
[1747611764730,2.10557,2456.4,2456.3,0.9411261]
[1747611764731,1.2917,2456.4,2456.3,0.9411261]
[1747611765032,0.81383,2456.5,2456.3,0.9411161]
[1747611765230,0.81383,2456.5,2456.4,0.1272361]
[1747611765726,0.81407,2455.8,2455.6,1.3837]
[1747611766034,0.81411,2455.7,2455.4,4.89297]
[1747611766237,2.8645,2456.1,2455.5,1.3526]
[1747611766439,0.8141,2455.7,2455.5,2.16675]
[1747611766627,2.8645,2456.1,2455.5,2.16675]
[1747611766827,2.8645,2456.1,2455.5,1.3526]
[1747611766828,0.8141,2455.7,2455.5,1.3526]
[1747611767339,0.8141,2455.7,2455.4,4.89297]
[1747611767523,2.8645,2456.1,2455.4,3.2078]
[1747611767524,0.81416,2455.5,2455.4,3.2078]
[1747611767728,13.0688,2455.9,2455.1,1.3526]
[1747611767930,0.81414,2455.6,2455.1,1.3526]
[1747611768131,0.81415,2455.6,2455.3,0.81421]
[1747611768332,0.81425,2455.3,2455.1,1.3526]
[1747611768636,0.81422,2455.4,2455.1,2.16688]
[1747611769231,9.822,2455.5,2455.0,9.861]
[1747611769432,0.81433,2455.0,2454.9,6.2658]
[1747611769634,0.81433,2455.0,2454.9,3.058]
[1747611770136,9.815,2455.1,2454.5,3.2078]
[1747611770329,3.2078,2455.0,2454.4,1.4252]
[1747611770528,0.81448,2454.6,2454.4,1.4252]
[1747611770729,2.03592,2454.9,2454.3,0.8225]
[1747611770936,3.2078,2454.7,2454.2,4.41225206]
[1747611771129,9.807,2454.6,2454.2,4.41225206]
[1747611771339,0.8145,2454.5,2454.2,5.22683206]
[1747611772135,0.8145,2454.5,2454.2,4.41225206]
[1747611772534,0.81453,2454.4,2454.2,4.41225206]
[1747611772831,0.81456,2454.3,2454.2,4.41225206]
[1747611773031,0.81456,2454.3,2454.2,1.20445206]
[1747611773436,0.81451,2454.5,2454.2,4.41225206]
[1747611773641,0.81453,2454.4,2454.2,4.41225206]
[1747611773838,0.81452,2454.5,2454.2,2.01903206]
[1747611774039,0.8511,2454.6,2454.2,2.61545206]
[1747611774239,3.2078,2454.7,2454.2,2.61545206]
[1747611774240,0.81445,2454.7,2454.4,0.81453]
[1747611774845,0.8146,2454.2,2453.9,14.74958]
[1747611775337,0.8146,2454.2,2454.0,1.3405]
[1747611775642,0.81463,2454.1,2454.0,1.3405]
[1747611775836,0.8147,2453.9,2453.8,1.3405]
[1747611776032,4.0671,2454.4,2453.5,9.866]
[1747611776344,10.56749,2454.6,2454.3,0.81455]
[1747611776635,10.5946,2455.0,2454.6,0.81446]
[1747611776843,0.81438,2454.9,2454.7,0.81443]
[1747611777041,11.40895,2455.0,2454.7,0.81443]
[1747611777343,0.81443,2454.8,2454.6,1.3405]
[1747611777540,0.81443,2454.7,2454.6,1.3405]
[1747611778243,0.81442,2454.8,2454.6,1.3405]
[1747611778449,0.81442,2454.8,2454.6,2.15496]
[1747611778740,0.81442,2454.8,2454.6,1.3405]
[1747611779135,10.5886,2455.0,2454.6,1.3405]
[1747611779136,10.5886,2455.0,2454.6,2.15495]
[1747611779337,0.8226,2455.0,2454.6,1.3405]
[1747611779535,0.81441,2454.8,2454.6,1.3405]
[1747611779742,0.81441,2454.8,2454.6,2.15496]
[1747611779943,0.81441,2454.8,2454.6,1.3405]
[1747611780452,0.8226,2455.0,2454.7,0.81442]
[1747611780743,0.81437,2454.9,2454.8,1.3995]
[1747611781040,2.85849,2455.0,2454.4,9.866]
[1747611781244,2.85849,2455.0,2454.2,15.28989]
[1747611781245,3.2078,2454.8,2454.2,15.28989]
[1747611781442,0.8226,2455.0,2454.2,11.2675]
[1747611781644,0.81441,2454.8,2454.2,14.4753]
[1747611781837,0.81441,2454.8,2454.5,0.81449]
[1747611782037,0.81441,2454.8,2454.6,1.3343]
[1747611782245,0.81443,2454.7,2454.6,1.3343]
[1747611782541,9.687,2454.9,2454.2,13.0758]
[1747611782743,0.81443,2454.8,2454.5,0.81448]
[1747611783045,0.81444,2454.7,2454.5,0.81448]
[1747611783446,0.81448,2454.6,2454.3,1.3343]